bitfinex/quotes_BTCUSD_20230108
["timestamp","ask_amount","ask_price","bid_price","bid_amount"]
[1673147855291,0.95635412,16943.0,16942.0,1.49057]
[1673147855784,0.95635412,16943.0,16942.0,1.96615528]
[1673147858817,0.95635412,16943.0,16942.0,1.49057]
[1673147859068,0.95635412,16943.0,16942.0,1.96615528]
[1673147860176,0.95635412,16943.0,16942.0,1.49057]
[1673147860662,0.95635412,16943.0,16942.0,1.96615528]
[1673147861133,0.95635412,16943.0,16942.0,1.49057]
[1673147862605,0.95635412,16943.0,16942.0,1.96615528]
[1673147864030,0.95635412,16943.0,16942.0,1.49057]
[1673147868263,0.5134039,16943.0,16942.0,1.49057]
[1673147875480,1.1211959,16943.0,16942.0,1.45240466]
[1673147876270,0.5134039,16943.0,16942.0,1.45240466]
[1673147877914,1.1211959,16943.0,16942.0,1.45240466]
[1673147878426,1.1211959,16943.0,16942.0,1.45232725]
[1673147878953,0.5134039,16943.0,16942.0,1.45232725]
[1673147880968,0.5134039,16943.0,16942.0,1.92791253]
[1673147881216,0.5134039,16943.0,16942.0,1.45232725]
[1673147889494,1.1211959,16943.0,16942.0,1.45232725]
[1673147889741,0.5134039,16943.0,16942.0,1.45232725]
[1673147891227,0.5134039,16943.0,16942.0,1.92791253]
[1673147891473,0.44289512,16943.0,16942.0,1.92791253]
[1673147891737,0.95629902,16943.0,16942.0,1.92791253]
[1673147892436,0.95629902,16943.0,16942.0,1.45232725]
[1673147894651,0.95629902,16943.0,16942.0,1.92791253]
[1673147897052,0.95629902,16943.0,16942.0,1.92848787]
[1673147898057,0.79718601,16943.0,16942.0,1.92848787]
[1673147898327,1.31058991,16943.0,16942.0,1.92848787]
[1673147899773,1.31058991,16943.0,16942.0,1.45290259]
[1673147900028,1.31058991,16943.0,16942.0,1.92848787]
[1673147900254,0.79718601,16943.0,16942.0,1.92848787]
[1673147900946,0.79718601,16943.0,16942.0,1.92791253]
[1673147901220,1.18443702,16943.0,16942.0,1.92791253]
[1673147903691,1.18443702,16943.0,16942.0,1.45232725]
[1673147903970,1.18443702,16943.0,16942.0,2.04257625]
[1673147904213,1.18338672,16943.0,16942.0,2.04257625]
[1673147904461,0.79718601,16943.0,16942.0,2.04315159]
[1673147905603,0.79718601,16943.0,16942.0,2.04257625]
[1673147905823,1.79117386,16943.0,16942.0,2.04257625]
[1673147906050,1.18338186,16943.0,16942.0,2.04257625]
[1673147906555,0.79718601,16943.0,16942.0,2.04257625]
[1673147907949,1.79117386,16943.0,16942.0,2.04257625]
[1673147908917,1.18338186,16943.0,16942.0,2.04257625]
[1673147909156,1.79117386,16943.0,16942.0,2.04257625]
[1673147909654,1.18338186,16943.0,16942.0,2.04257625]
[1673147912737,1.79117386,16943.0,16942.0,2.04257625]
[1673147913223,1.18338186,16943.0,16942.0,2.04257625]
[1673147914896,1.79117386,16943.0,16942.0,2.04257625]
[1673147915964,1.18338186,16943.0,16942.0,2.04257625]
[1673147917572,1.79117386,16943.0,16942.0,2.04257625]
[1673147918353,1.43688297,16943.0,16942.0,2.04257625]
[1673147918615,1.18333124,16943.0,16942.0,2.04257625]
[1673147922479,0.79713539,16943.0,16942.0,2.04257625]
[1673147922970,1.18532049,16943.0,16942.0,2.04257625]
[1673147923992,1.79311249,16943.0,16942.0,2.04257625]
[1673147924476,1.18532049,16943.0,16942.0,2.04257625]
[1673147925943,0.79713539,16943.0,16942.0,2.04257625]
[1673147926685,1.0628243,16943.0,16942.0,2.04257625]
[1673147926922,1.06282437,16943.0,16942.0,2.04257625]
[1673147927145,0.79713539,16943.0,16942.0,2.04257625]
[1673147927392,0.61992934,16943.0,16942.0,2.04257625]
[1673147927626,0.79713539,16943.0,16942.0,2.04257625]
[1673147928683,1.79279375,16943.0,16942.0,1.45232725]
[1673147929442,1.18500175,16943.0,16942.0,1.45232725]
[1673147931351,0.79713539,16943.0,16942.0,1.45232725]
[1673147931581,1.18500175,16943.0,16942.0,1.45232725]
[1673147934906,1.18500175,16943.0,16942.0,1.50197328]
[1673147937516,0.83076148,16943.0,16942.0,1.50197328]
[1673147938045,1.18511547,16943.0,16942.0,1.50197328]
[1673147938279,0.83076148,16943.0,16942.0,1.50197328]
[1673147938534,1.1851179,16943.0,16942.0,1.50197328]
[1673147940480,0.83076148,16943.0,16942.0,1.50197328]
[1673147940729,0.44289512,16943.0,16942.0,1.50197328]
[1673147940983,0.83076148,16943.0,16942.0,1.50197328]
[1673147954211,1.18509158,16943.0,16942.0,1.50197328]
[1673147956119,0.83076148,16943.0,16942.0,1.50197328]
[1673147957380,1.18509015,16943.0,16942.0,1.50197328]
[1673147957921,0.83076148,16943.0,16942.0,1.50197328]
[1673147958176,0.44289512,16943.0,16942.0,1.50197328]
[1673147958426,0.83076148,16943.0,16942.0,1.50197328]
[1673147958934,0.44289512,16943.0,16942.0,1.50197328]
[1673147959182,0.83076148,16943.0,16942.0,1.50197328]
[1673147963043,1.43855348,16943.0,16942.0,1.50197328]
[1673147963579,0.83076148,16943.0,16942.0,1.50197328]
[1673147964096,1.43855348,16943.0,16942.0,1.50197328]
[1673147964348,0.83076148,16943.0,16942.0,1.50197328]
[1673147966489,1.43855348,16943.0,16942.0,1.50197328]
[1673147966744,0.83076148,16943.0,16942.0,1.50197328]
[1673147966994,0.38786636,16943.0,16942.0,1.50197328]
[1673147967484,0.83076306,16943.0,16942.0,1.50197328]
[1673147968495,0.38786636,16943.0,16942.0,1.50197328]
[1673147970283,0.83075392,16943.0,16942.0,1.50197328]
[1673147970531,0.83075328,16943.0,16942.0,1.50197328]
[1673147972498,1.43854528,16943.0,16942.0,1.50197328]
[1673147973028,0.83075328,16943.0,16942.0,1.50197328]
[1673147974301,0.99565836,16943.0,16942.0,1.50197328]
[1673147974564,1.43854272,16943.0,16942.0,1.50197328]
[1673147974847,0.99565836,16943.0,16942.0,1.50197328]
[1673147975101,0.38786636,16943.0,16942.0,1.50197328]
[1673147975435,1.5270718,16943.0,16942.0,1.50185762]
[1673147975598,0.99565836,16943.0,16942.0,1.50185762]
[1673147975889,0.38786636,16943.0,16942.0,1.50185762]
[1673147984711,0.99565836,16943.0,16942.0,1.50185762]
[1673147985209,0.38786636,16943.0,16942.0,1.50185762]
[1673147987061,0.99565836,16943.0,16942.0,1.50185762]
[1673147987504,0.99565836,16943.0,16942.0,0.91160862]
[1673147987724,0.38786636,16943.0,16942.0,0.91160862]
[1673147988799,0.83059599,16943.0,16942.0,0.91160862]
[1673147989800,0.83059599,16943.0,16942.0,1.50185762]
[1673147990487,0.38786636,16943.0,16942.0,1.50185762]
[1673147990708,0.83060402,16943.0,16942.0,1.50185762]
[1673147995952,0.7969442,16943.0,16942.0,1.50185762]
[1673147996173,1.18481056,16943.0,16942.0,1.50185762]
[1673147997712,1.18481056,16943.0,16942.0,2.09210662]
[1673147998691,0.7969442,16943.0,16942.0,2.56733822]
[1673147998970,0.7969442,16943.0,16942.0,3.17513022]
[1673147999478,0.79683078,16943.0,16942.0,3.17513022]
[1673147999719,0.79683078,16943.0,16942.0,2.56733822]
[1673148001603,1.06247219,16943.0,16942.0,2.56733822]
[1673148001823,0.61984785,16943.0,16942.0,2.56733822]
[1673148003701,0.35420654,16943.0,16942.0,2.56733822]
[1673148004462,0.61981579,16943.0,16942.0,2.56733822]
[1673148004726,0.35420654,16943.0,16942.0,2.56733822]
[1673148005016,0.61981595,16943.0,16942.0,2.56733822]
[1673148011048,0.79685699,16943.0,16942.0,2.56733822]
[1673148011360,0.61981595,16943.0,16942.0,2.56733822]
[1673148019910,0.61981595,16943.0,16942.0,3.17513022]
[1673148024094,0.61981595,16943.0,16942.0,2.56733822]
[1673148024600,1.18436138,16943.0,16942.0,2.09203737]
[1673148024843,1.18436259,16943.0,16942.0,2.09203737]
[1673148025858,1.18436259,16943.0,16942.0,2.56762265]
[1673148026119,1.18436259,16943.0,16942.0,2.09203737]
[1673148027388,0.83023022,16943.0,16942.0,2.09203737]
[1673148027642,0.83023022,16943.0,16942.0,2.56762265]
[1673148027888,1.18444649,16943.0,16942.0,2.56762265]
[1673148028860,1.18444649,16943.0,16942.0,2.09203737]
[1673148029135,1.18444649,16943.0,16942.0,2.56762265]
[1673148029618,0.83023022,16943.0,16942.0,2.56762265]
[1673148030116,1.18447062,16943.0,16942.0,2.56762265]
[1673148030396,0.83023022,16943.0,16942.0,2.56762265]
[1673148031554,0.44264845,16943.0,16942.0,2.35294565]
[1673148031813,0.83023022,16943.0,16942.0,1.87736037]
[1673148032813,0.83023022,16943.0,16942.0,2.35254697]
[1673148033057,0.83023022,16943.0,16942.0,1.87736037]
[1673148033536,0.83023022,16943.0,16942.0,2.35254697]
[1673148034585,1.18450859,16943.0,16942.0,2.35254697]
[1673148036584,0.83023022,16943.0,16942.0,1.87736037]
[1673148037369,0.83023022,16943.0,16942.0,2.35254697]
[1673148037628,0.83023022,16943.0,16942.0,1.87736037]
[1673148040079,1.18450995,16943.0,16942.0,2.35254697]
[1673148040380,0.83023022,16943.0,16942.0,2.35254697]
[1673148040668,0.83023022,16943.0,16942.0,2.33887682]
[1673148043150,0.44264845,16943.0,16942.0,1.86369022]
[1673148043409,0.83023022,16943.0,16942.0,1.86369022]
[1673148047274,0.83023022,16943.0,16942.0,2.33887682]
[1673148050331,0.44264845,16943.0,16942.0,2.33887682]
[1673148050589,0.79692129,16943.0,16942.0,2.33887682]
[1673148050806,1.18450306,16943.0,16942.0,2.33887682]
[1673148059229,0.83023022,16943.0,16942.0,2.33887682]
[1673148059485,0.44264845,16943.0,16942.0,2.33887682]
[1673148059714,0.83023022,16943.0,16942.0,2.33887682]
[1673148059962,1.05044045,16943.0,16942.0,1.86369022]
[1673148060214,0.83023022,16943.0,16942.0,1.86369022]
[1673148060821,0.83023022,16943.0,16942.0,2.33887682]
[1673148061497,0.44264845,16943.0,16942.0,2.33887682]
[1673148061724,0.83023022,16943.0,16942.0,2.33887682]
[1673148064083,0.73023022,16943.0,16942.0,2.33887682]
[1673148070256,0.73023022,16943.0,16942.0,2.33750434]
[1673148070497,0.73023022,16943.0,16942.0,1.86369022]
[1673148071748,0.73023022,16943.0,16942.0,2.33750434]
[1673148085738,0.73023022,16943.0,16942.0,2.94529634]
[1673148087987,0.73023022,16943.0,16942.0,2.35171328]
[1673148088732,0.73023022,16943.0,16942.0,2.35164183]
[1673148096105,0.69701927,16943.0,16942.0,2.35164183]
[1673148096354,1.08460104,16943.0,16942.0,2.35164183]
[1673148096842,0.73023022,16943.0,16942.0,2.35164183]
[1673148097324,0.73023022,16943.0,16942.0,1.87782771]
[1673148097582,1.33802222,16943.0,16942.0,1.87782771]
[1673148097844,0.99537377,16943.0,16942.0,1.87782771]
[1673148098106,1.43833657,16943.0,16942.0,1.87782771]
[1673148098386,0.83054457,16943.0,16942.0,1.87782771]
[1673148098909,1.43833657,16943.0,16942.0,1.87782771]
[1673148099430,0.99537377,16943.0,16942.0,1.87782771]
[1673148101534,0.38758177,16943.0,16942.0,1.87782771]
[1673148103369,0.38758177,16943.0,16942.0,2.35164183]
[1673148103883,0.38758177,16943.0,16942.0,1.87782771]
[1673148104653,0.83048524,16943.0,16942.0,1.87782771]
[1673148104905,0.83048499,16943.0,16942.0,1.87782771]
[1673148106655,1.43827699,16943.0,16942.0,1.87782771]
[1673148106897,0.38758177,16943.0,16942.0,1.87782771]
[1673148108685,0.83046452,16943.0,16942.0,2.35164183]
[1673148109130,0.83046452,16943.0,16942.0,1.87782771]
[1673148112326,0.83046452,16943.0,16942.0,2.35164183]
[1673148119551,1.18475354,16943.0,16942.0,2.35164183]
[1673148121022,0.83046452,16943.0,16942.0,2.35164183]
[1673148121533,1.18475037,16943.0,16942.0,2.35164183]
[1673148121786,0.83046452,16943.0,16942.0,2.35164183]
[1673148122274,0.83010715,16943.0,16942.0,2.35164183]
[1673148125131,0.83010715,16943.0,16942.0,1.87782771]
[1673148125390,1.43789915,16943.0,16942.0,1.87782771]
[1673148125638,0.83010715,16943.0,16942.0,1.87782771]
[1673148126595,0.83010715,16943.0,16942.0,2.35164183]
[1673148131453,1.18440342,16943.0,16942.0,2.35164183]
[1673148131675,1.18440435,16943.0,16942.0,2.35164183]
[1673148131897,1.18440367,16943.0,16942.0,2.35164183]
[1673148132874,1.18440702,16943.0,16942.0,2.35164183]
[1673148135191,0.83010715,16943.0,16942.0,2.35164183]
[1673148135410,1.18440516,16943.0,16942.0,2.35164183]
[1673148136406,1.18441525,16943.0,16942.0,2.35164183]
[1673148136657,1.18441525,16943.0,16942.0,1.87782771]
[1673148136894,1.43789915,16943.0,16942.0,2.35164183]
[1673148137115,0.83010715,16943.0,16942.0,2.35164183]
[1673148137617,1.18441491,16943.0,16942.0,2.35164183]
[1673148139916,0.83010715,16943.0,16942.0,1.87782771]
[1673148140450,0.83010715,16943.0,16942.0,2.35164183]
[1673148141950,1.18441341,16943.0,16942.0,2.35164183]
[1673148142198,0.83010715,16943.0,16942.0,2.35164183]
[1673148142426,1.18441958,16943.0,16942.0,2.35157554]
[1673148144204,1.18441958,16943.0,16942.0,1.87776142]
[1673148144456,0.83010715,16943.0,16942.0,1.87776142]
[1673148145208,0.83010715,16943.0,16942.0,2.35157554]
[1673148145708,0.83010715,16943.0,16942.0,1.87776142]
[1673148150014,1.43789915,16943.0,16942.0,1.87776142]
[1673148150510,0.38758177,16943.0,16942.0,1.87776142]
[1673148150993,0.83051526,16943.0,16942.0,1.87776142]
[1673148151487,0.38758177,16943.0,16942.0,1.87776142]
[1673148154000,0.83049846,16943.0,16942.0,1.87776142]
[1673148154271,0.38758177,16943.0,16942.0,1.87776142]
[1673148154522,0.83049503,16943.0,16942.0,1.87776142]
[1673148155735,0.38758177,16943.0,16942.0,1.87776142]
[1673148156543,0.83048201,16943.0,16942.0,1.87776142]
[1673148178496,0.83048201,16943.0,16942.0,2.35157554]
[1673148178739,0.83048201,16943.0,16942.0,2.95936754]
[1673148187359,0.79723758,16943.0,16942.0,2.95936754]
[1673148187608,1.18481935,16943.0,16942.0,2.95936754]
[1673148194189,0.79723758,16943.0,16942.0,2.95936754]
[1673148194719,0.79723758,16943.0,16942.0,2.35157554]
[1673148194975,0.79723758,16943.0,16942.0,1.87776142]
[1673148195222,1.78567451,16943.0,16942.0,2.35157554]
[1673148195748,1.17788251,16943.0,16942.0,2.35157554]
[1673148200379,1.78567451,16943.0,16942.0,2.35157554]
[1673148201164,1.17788251,16943.0,16942.0,2.35157554]
[1673148202176,1.78567451,16943.0,16942.0,2.35157554]
[1673148204380,1.17788251,16943.0,16942.0,2.35157554]
[1673148206456,1.78567451,16943.0,16942.0,2.35157554]
[1673148207515,1.17788251,16943.0,16942.0,2.35157554]
[1673148210321,1.78567451,16943.0,16942.0,2.35157554]
[1673148210773,1.17788251,16943.0,16942.0,2.35157554]
[1673148213324,1.78567451,16943.0,16942.0,1.87776142]
[1673148213571,1.43133717,16943.0,16942.0,1.87776142]
[1673148214704,0.82354517,16943.0,16942.0,1.87776142]
[1673148214968,1.43133717,16943.0,16942.0,1.87776142]
[1673148215484,0.82354517,16943.0,16942.0,1.87776142]
[1673148216800,1.43133717,16943.0,16942.0,1.87776142]
[1673148217821,0.82354517,16943.0,16942.0,1.87776142]
[1673148218611,0.74804517,16943.0,16942.0,1.87776142]
[1673148218885,1.35583717,16943.0,16942.0,1.87776142]
[1673148219727,0.74804517,16943.0,16942.0,1.87776142]
[1673148220254,1.35583717,16943.0,16942.0,1.87776142]
[1673148221026,0.74804517,16943.0,16942.0,1.87776142]
[1673148222207,1.35583717,16943.0,16942.0,1.87776142]
[1673148222441,0.74804517,16943.0,16942.0,1.87776142]
[1673148222708,1.35583717,16943.0,16942.0,1.87776142]
[1673148223903,0.74804517,16943.0,16942.0,1.87776142]
[1673148224426,1.35583717,16943.0,16942.0,1.87776142]
[1673148224907,0.74804517,16943.0,16942.0,1.87776142]
[1673148225427,1.35583717,16943.0,16942.0,1.87776142]
[1673148225931,1.35583717,16943.0,16942.0,1.24435297]
[1673148226383,0.74804517,16943.0,16942.0,1.24435297]
[1673148235401,0.74804517,16943.0,16942.0,1.19470694]
[1673148236139,0.74804517,16943.0,16942.0,1.24195891]
[1673148238570,0.74804517,16943.0,16942.0,1.71416297]
[1673148238827,0.74804517,16943.0,16942.0,1.24195891]
[1673148240227,0.77589006,16943.0,16942.0,1.24195891]
[1673148240986,0.77589006,16943.0,16942.0,1.24187182]
[1673148241255,0.77589006,16943.0,16942.0,1.71407588]
[1673148242279,0.74804517,16943.0,16942.0,1.71407588]
[1673148243149,0.74804517,16943.0,16942.0,1.24187182]
[1673148244219,1.35583717,16943.0,16942.0,1.24187182]
[1673148246557,0.74804517,16943.0,16942.0,1.24187182]
[1673148250031,1.35583717,16943.0,16942.0,1.24187182]
[1673148251114,0.74804517,16943.0,16942.0,1.24187182]
[1673148252549,1.35583717,16943.0,16942.0,1.24187182]
[1673148252805,0.74804517,16943.0,16942.0,1.24187182]
[1673148254611,1.35583717,16943.0,16942.0,1.24187182]
[1673148255864,0.74804517,16943.0,16942.0,1.24187182]
[1673148259050,0.73804517,16943.0,16942.0,1.24187182]
[1673148259433,0.73804517,16943.0,16942.0,1.71407588]
[1673148261999,0.73804517,16943.0,16942.0,2.82248512]
[1673148262253,1.09242357,16943.0,16942.0,2.82248512]
[1673148263283,1.09242357,16943.0,16942.0,2.21469312]
[1673148264978,0.73804517,16943.0,16942.0,2.21469312]
[1673148265252,1.09238465,16943.0,16942.0,2.21469312]
[1673148265522,1.09238418,16943.0,16942.0,2.21469312]
[1673148266561,0.73804517,16943.0,16942.0,2.21469312]
[1673148268357,1.09237783,16943.0,16942.0,2.21469312]
[1673148270385,1.09237042,16943.0,16942.0,2.21469312]
[1673148270644,0.73804517,16943.0,16942.0,2.21469312]
[1673148272264,1.09237146,16943.0,16942.0,2.21469312]
[1673148272518,0.73804517,16943.0,16942.0,2.21469312]
[1673148279562,0.73804517,16943.0,16942.0,2.21460768]
[1673148281266,0.73804517,16943.0,16942.0,1.74240362]
[1673148282264,0.73804517,16943.0,16942.0,2.21460768]
[1673148284384,1.0923694,16943.0,16942.0,2.21460768]
[1673148292504,1.0923694,16943.0,16942.0,5.21460768]
[1673148292875,0.73804517,16943.0,16942.0,5.21460768]
[1673148293150,1.0923787,16943.0,16942.0,5.21460768]
[1673148293405,1.0923787,16943.0,16942.0,5.82239968]
[1673148293726,1.09227006,16943.0,16942.0,5.82239968]
[1673148294194,1.09227603,16943.0,16942.0,5.82239968]
[1673148294432,1.09227603,16943.0,16942.0,5.21460768]
[1673148294683,0.73793653,16943.0,16942.0,5.21460768]
[1673148296472,0.73793653,16943.0,16942.0,5.82239968]
[1673148296694,1.09228867,16943.0,16942.0,5.82239968]
[1673148297209,0.73793653,16943.0,16942.0,5.82239968]
[1673148297465,0.73793653,16943.0,16942.0,5.21460768]
[1673148299242,0.73793653,16943.0,16942.0,5.82239968]
[1673148299878,0.71166674,16943.0,16942.0,5.82239968]
[1673148300108,1.09231167,16943.0,16942.0,5.82239968]
[1673148301488,1.09231167,16943.0,16942.0,5.21460768]
[1673148301924,1.09231167,16943.0,16942.0,5.82239968]
[1673148304598,0.73793653,16943.0,16942.0,5.82239968]
[1673148305880,0.3572916,16943.0,16942.0,5.82239968]
[1673148306110,0.73793653,16943.0,16942.0,5.82239968]
[1673148312993,0.3572916,16943.0,16942.0,5.82239968]
[1673148313259,0.73793653,16943.0,16942.0,5.82239968]
[1673148314931,1.09231543,16943.0,16942.0,5.82239968]
[1673148316428,1.09231543,16943.0,16942.0,5.21460768]
[1673148316716,0.73793653,16943.0,16942.0,5.21460768]
[1673148317933,0.73793653,16943.0,16942.0,5.21452484]
[1673148318943,1.09231658,16943.0,16942.0,5.82231684]
[1673148319425,1.09231745,16943.0,16942.0,5.82231684]
[1673148319724,0.73793653,16943.0,16942.0,5.21452484]
[1673148320231,0.71167159,16943.0,16942.0,5.21452484]
[1673148320530,1.09231652,16943.0,16942.0,5.21452484]
[1673148320765,1.09231665,16943.0,16942.0,5.21452484]
[1673148321878,1.09231665,16943.0,16942.0,5.82231684]
[1673148324515,1.09231665,16943.0,16942.0,5.21452484]
[1673148344198,1.09231665,16943.0,16942.0,4.03428221]
[1673148344432,1.09231665,16943.0,16942.0,5.21478021]
[1673148344966,1.09231665,16943.0,16942.0,5.82257221]
[1673148345480,1.09231665,16943.0,16942.0,5.21478021]
[1673148346278,1.09231665,16943.0,16942.0,5.82257221]
[1673148347884,0.71167172,16943.0,16942.0,6.58612121]
[1673148350356,0.71167172,16943.0,16942.0,6.04932921]
[1673148350622,0.71167172,16943.0,16942.0,5.97832921]
[1673148350843,0.71267172,16943.0,16942.0,6.72712121]
[1673148355140,0.79820091,16943.0,16942.0,6.72712121]
[1673148355387,0.62107278,16943.0,16942.0,6.11932921]
[1673148356843,0.88356758,16943.0,16942.0,6.11932921]
[1673148357358,0.88356758,16943.0,16942.0,5.52908021]
[1673148359483,1.24085918,16943.0,16942.0,5.52908021]
[1673148359705,1.49135958,16943.0,16942.0,5.35578021]
[1673148360454,1.84865118,16943.0,16942.0,5.35578021]
[1673148360981,1.49135958,16943.0,16942.0,5.35578021]
[1673148361232,0.88356758,16943.0,16942.0,5.35578021]
[1673148370422,1.24085918,16943.0,16942.0,5.35578021]
[1673148370626,1.848664,16943.0,16942.0,5.35578021]
[1673148370840,1.58295852,16943.0,16942.0,5.35578021]
[1673148371089,1.84866395,16943.0,16942.0,5.35578021]
[1673148371344,1.58295852,16943.0,16942.0,5.35578021]
[1673148371873,1.94887058,16943.0,16942.0,5.35578021]
[1673148373386,1.94886867,16943.0,16942.0,5.35578021]
[1673148374262,1.58295852,16943.0,16942.0,5.35578021]
[1673148378847,1.84867446,16943.0,16942.0,5.35578021]
[1673148379875,1.58295852,16943.0,16942.0,5.35578021]
[1673148380926,0.97516652,16943.0,16942.0,5.35578021]
[1673148381730,1.24088495,16943.0,16942.0,5.35578021]
[1673148383532,0.88359335,16943.0,16942.0,5.35578021]
[1673148385792,0.88359335,16943.0,16942.0,5.94602921]
[1673148386044,0.88359335,16943.0,16942.0,6.55382121]
[1673148386796,0.88359335,16943.0,16942.0,5.94602921]
[1673148387992,0.88359335,16943.0,16942.0,5.93182027]
[1673148388257,0.88359335,16943.0,16942.0,5.95222754]
[1673148392203,1.24088495,16943.0,16942.0,5.95222754]
[1673148392458,0.88359335,16943.0,16942.0,5.95222754]
[1673148393849,0.97516652,16943.0,16942.0,5.95222754]
[1673148394346,0.88362049,16943.0,16942.0,5.95222754]
[1673148395847,1.58295852,16943.0,16942.0,5.95222754]
[1673148396612,1.94788855,16943.0,16942.0,5.95222754]
[1673148397120,1.58295852,16943.0,16942.0,5.95222754]
[1673148397405,1.94788894,16943.0,16942.0,5.95222754]
[1673148397903,1.58295852,16943.0,16942.0,5.95222754]
[1673148398164,1.24092241,16943.0,16942.0,5.95222754]
[1673148398925,0.88363081,16943.0,16942.0,5.95222754]
[1673148402281,1.24092241,16943.0,16942.0,5.95222754]
[1673148402816,0.88363081,16943.0,16942.0,5.95222754]
[1673148403530,1.24092241,16943.0,16942.0,5.95222754]
[1673148404541,0.88363081,16943.0,16942.0,5.95222754]
[1673148412695,1.24092241,16943.0,16942.0,5.95222754]
[1673148412950,0.88363081,16943.0,16942.0,5.95222754]
[1673148413201,0.97516652,16943.0,16942.0,5.95222754]
[1673148413459,1.24091468,16943.0,16942.0,5.95222754]
[1673148413713,0.88362308,16943.0,16942.0,5.95222754]
[1673148413957,0.97516652,16943.0,16942.0,5.95222754]
[1673148414207,1.24092161,16943.0,16942.0,5.95222754]
[1673148414698,0.97516652,16943.0,16942.0,5.95222754]
[1673148414968,1.2409227,16943.0,16942.0,5.95222754]
[1673148415217,0.8836311,16943.0,16942.0,5.95222754]
[1673148419089,1.4914231,16943.0,16942.0,5.95222754]
[1673148419856,1.84873113,16943.0,16942.0,5.95222754]
[1673148420107,0.88364753,16943.0,16942.0,5.95222754]
[1673148420662,1.84873113,16943.0,16942.0,5.95222754]
[1673148421174,1.58295852,16943.0,16942.0,5.95222754]
[1673148421739,0.97516652,16943.0,16942.0,5.95222754]
[1673148423184,1.34021345,16943.0,16942.0,5.95222754]
[1673148423436,1.94800545,16943.0,16942.0,5.95222754]
[1673148424210,1.34021345,16943.0,16942.0,5.95222754]
[1673148426876,0.97516652,16943.0,16942.0,5.95222754]
[1673148429577,1.58295852,16943.0,16942.0,5.95222754]
[1673148430270,0.97516652,16943.0,16942.0,5.95222754]
[1673148430708,1.24093548,16943.0,16942.0,5.95222754]
[1673148431006,1.24093456,16943.0,16942.0,5.95222754]
[1673148431253,0.97516652,16943.0,16942.0,5.95222754]
[1673148432260,1.24093436,16943.0,16942.0,5.95222754]
[1673148432508,0.97516652,16943.0,16942.0,5.95222754]
[1673148435035,1.3905818,16943.0,16942.0,5.95222754]
[1673148436542,1.39055601,16943.0,16942.0,5.95222754]
[1673148436795,1.03620168,16943.0,16942.0,5.95222754]
[1673148437814,0.97514109,16943.0,16942.0,5.95222754]
[1673148438055,1.03620168,16943.0,16942.0,5.95222754]
[1673148438263,0.6207864,16943.0,16942.0,5.95222754]
[1673148438516,0.97514087,16943.0,16942.0,5.95222754]
[1673148438790,0.6207864,16943.0,16942.0,5.95222754]
[1673148439054,1.03620168,16943.0,16942.0,5.95222754]
[1673148439307,0.80573172,16943.0,16942.0,5.95222754]
[1673148439791,0.39031644,16943.0,16942.0,5.95222754]
[1673148440060,0.80573172,16943.0,16942.0,5.95222754]
[1673148440313,0.39031644,16943.0,16942.0,5.95222754]
[1673148440778,0.80573172,16943.0,16942.0,5.95222754]
[1673148441027,0.41541528,16943.0,16942.0,5.95222754]
[1673148441539,0.56595003,16944.0,16942.0,5.95222754]
[1673148441772,0.41541528,16943.0,16942.0,5.95222754]
[1673148442236,0.41541528,16943.0,16942.0,5.81122754]
[1673148442503,0.56595003,16944.0,16942.0,5.81122754]
[1673148442753,0.41541528,16943.0,16942.0,5.81122754]
[1673148443227,0.001,16943.0,16942.0,5.81122754]
[1673148443484,0.56595003,16944.0,16942.0,5.81122754]
[1673148443713,0.607792,16943.0,16942.0,4.96716942]
[1673148443934,1.02320728,16943.0,16942.0,4.96727023]
[1673148444195,0.41641528,16943.0,16942.0,5.10827023]
[1673148444417,0.001,16943.0,16942.0,5.10827023]
[1673148445095,0.56595003,16944.0,16942.0,5.49604013]
[1673148445542,0.607792,16943.0,16942.0,5.56904013]
[1673148445759,0.56595003,16944.0,16942.0,5.56904013]
[1673148446336,0.56595003,16944.0,16942.0,5.49604013]
[1673148446561,0.001,16943.0,16942.0,5.63704013]
[1673148446804,0.53141344,16944.0,16942.0,5.49604013]
[1673148447055,0.53141344,16944.0,16942.0,5.56904013]
[1673148447961,0.44294413,16943.0,16942.0,4.96727023]
[1673148448477,0.44294551,16943.0,16942.0,4.96727023]
[1673148448754,0.44394551,16943.0,16942.0,5.10827023]
[1673148449275,0.44394551,16943.0,16942.0,5.71328159]
[1673148452197,0.001,16943.0,16942.0,5.71328159]
[1673148452721,0.44394768,16943.0,16942.0,5.71328159]
[1673148453231,0.001,16943.0,16942.0,5.71328159]
[1673148455425,0.608792,16943.0,16942.0,5.71328159]
[1673148455653,0.001,16943.0,16942.0,5.71328159]
[1673148458003,0.44393079,16943.0,16942.0,5.71328159]
[1673148458250,0.44393089,16943.0,16942.0,5.71328159]
[1673148458757,0.001,16943.0,16942.0,5.71328159]
[1673148459230,0.001,16943.0,16942.0,5.75498485]
[1673148460311,0.87320292,16943.0,16942.0,5.75498485]
[1673148460359,0.001,16943.0,16942.0,5.75498485]
[1673148460582,0.44392962,16943.0,16942.0,5.75498485]
[1673148460815,1.31613254,16943.0,16942.0,5.75498485]
[1673148461047,0.87320292,16943.0,16942.0,5.75498485]
[1673148463132,0.44393103,16943.0,16942.0,5.75498485]
[1673148463355,1.31613395,16943.0,16942.0,5.75498485]
[1673148463610,0.87320292,16943.0,16942.0,5.75498485]
[1673148463852,1.48099492,16943.0,16942.0,5.75498485]
[1673148464322,0.87320292,16943.0,16942.0,5.75498485]
[1673148464542,1.48099492,16943.0,16942.0,5.75498485]
[1673148464797,0.87320292,16943.0,16942.0,5.75498485]
[1673148468323,1.48099492,16943.0,16942.0,5.75498485]
[1673148468546,1.48099492,16943.0,16942.0,5.57886889]
[1673148469288,1.48099492,16943.0,16942.0,6.04960461]
[1673148469793,0.87320292,16943.0,16942.0,6.04960461]
[1673148473556,0.87320292,16943.0,16942.0,5.11925232]
[1673148473805,1.31611221,16943.0,16942.0,5.11925232]
[1673148480675,1.92390421,16943.0,16942.0,5.11925232]
[1673148480932,1.31611221,16943.0,16942.0,5.11925232]
[1673148486472,1.6704333,16943.0,16942.0,5.11925232]
[1673148488922,0.79823038,16943.0,16942.0,5.11925232]
[1673148489172,1.06395567,16943.0,16942.0,5.11925232]
[1673148489399,0.62104638,16943.0,16942.0,5.11925232]
[1673148496481,0.79812762,16943.0,16942.0,5.11925232]
[1673148497259,0.44380653,16943.0,16942.0,5.11925232]
[1673148508381,0.44380653,16943.0,16942.0,5.41925232]
[1673148508916,0.44380653,16943.0,16942.0,5.11925232]
[1673148514587,0.79812762,16943.0,16942.0,5.11925232]
[1673148517320,0.62104638,16943.0,16942.0,5.11925232]
[1673148518295,0.798139,16943.0,16942.0,5.11925232]
[1673148518848,0.62104638,16943.0,16942.0,5.11925232]
[1673148520906,0.7981519,16943.0,16942.0,5.11925232]
[1673148521411,0.44383081,16943.0,16942.0,5.41925232]
[1673148521894,0.7981519,16943.0,16942.0,5.11925232]
[1673148522693,0.44383081,16943.0,16942.0,5.11925232]
[1673148522942,0.7981519,16943.0,16942.0,5.11925232]
[1673148523474,0.62104638,16943.0,16942.0,5.11925232]
[1673148531720,0.62104638,16943.0,16942.0,5.41925232]